lending/lending_fUSD_20240130
["ID","MTS","AMOUNT","RATE_DAILY","PERIOD"]
[313007475,1706602159310,-2954.07099699,0.00022534,2]
[313007476,1706602159330,-449.34661238,0.00022535,2]
[313007508,1706602232241,-291.7666,0.00022599,2]
[313007512,1706602232251,-29.56296176,0.000226,2]
[313007516,1706602232262,-381.35703824,0.000226,2]
[313007518,1706602232272,-279.44827976,0.00022623,2]
[313007520,1706602232284,-453.63172024,0.00022623,2]
[313007522,1706602232293,-735.98,0.00022632,2]
[313007524,1706602232302,-538.35227517,0.00022646,2]
[313007529,1706602232340,-173.96772483,0.00022646,2]
[313007530,1706602232349,-156.39,0.00022681,2]
[313007531,1706602232358,-598.22281726,0.00022698,2]
[313007532,1706602232368,-452.41640494,0.00022698,2]
[313007533,1706602232377,-300.0,0.00022699,2]
[313007534,1706602232386,-480.80305297,0.000227,2]
[313007535,1706602232397,-256.59694703,0.000227,2]
[313007536,1706602232407,-101.49454915,0.000227,2]
[313007549,1706602232695,-478.56365276,0.000227,2]
[313007551,1706602232707,-147.40179809,0.000227,2]
[313007553,1706602232716,-184.6674151,0.000227,2]
[313007556,1706602232843,-538.9425849,0.000227,2]
[313007557,1706602232853,-1121.5542,0.000227,2]
[313007558,1706602232861,-500.0,0.000227,2]
[313007559,1706602232871,-15361.15507342,0.000227,2]
[313007560,1706602232887,-1504.11989338,0.000227,2]
[313007569,1706602238246,-347.655,0.000227,2]
[313007570,1706602238263,-808.75030777,0.000227,2]
[313007571,1706602238278,-741.27723955,0.000227,2]
[313007572,1706602238293,-420.8888349,0.000227,2]
[313007573,1706602238308,-57958.19040414,0.000227,2]
[313007574,1706602238367,-2500.82119386,0.000227,2]
[313007575,1706602238383,-679.21665167,0.000227,2]
[313007576,1706602238429,-311.21120683,0.000227,2]
[313007577,1706602238548,-19366.71419448,0.000227,2]
[313007578,1706602238560,-2741.6105,0.00022799,2]
[313007579,1706602238573,-1000.0,0.00022799,2]
[313007580,1706602238585,-2124.9857,0.00022799,2]
[313007581,1706602238597,-499.99,0.000228,2]
[313007582,1706602238609,-586.54760143,0.00022815,3]
[313007583,1706602238624,-500.0,0.00022815,2]
[313007584,1706602238635,-200.0,0.00022815,2]
[313007585,1706602238647,-500.0,0.00022815,2]
[313007586,1706602238659,-200.0,0.00022815,2]
[313007587,1706602238672,-500.0,0.00022816,2]
[313007588,1706602238685,-200.0,0.00022816,2]
[313007589,1706602238698,-500.0,0.00022816,2]
[313007590,1706602238711,-500.0,0.00022816,2]
[313007591,1706602238721,-500.0,0.00022816,2]
[313007592,1706602238732,-500.0,0.00022816,2]
[313007593,1706602238742,-500.0,0.00022816,2]
[313007594,1706602238752,-200.0,0.00022816,2]
[313007595,1706602238763,-200.0,0.00022816,2]
[313007596,1706602238775,-200.0,0.00022816,2]
[313007597,1706602238787,-200.0,0.00022816,2]
[313007598,1706602238799,-200.0,0.00022816,2]
[313007599,1706602238810,-800.0,0.00022816,2]
[313007600,1706602238821,-5754.36380622,0.00022817,2]
[313007601,1706602238831,-35221.53915499,0.00022899,2]
[313007602,1706602238844,-8636.73853177,0.00022899,2]
[313007603,1706602238863,-868.71140911,0.00022899,2]
[313007615,1706602241106,-646.66986606,0.00022899,2]
[313007616,1706602241133,-173148.47481318,0.00022899,2]
[313007617,1706602241635,-1196.35888034,0.00022899,2]
[313007618,1706602241649,-2142.95365204,0.00022899,2]
[313007619,1706602241662,-2727.47376045,0.00022899,2]
[313007620,1706602241676,-14777.25296788,0.00022899,2]
[313007621,1706602241694,-948.83827011,0.00022899,2]
[313007622,1706602241807,-298.48485011,0.00022899,2]
[313007623,1706602241821,-925.2730952,0.00022899,2]
[313007633,1706602243340,-380.0000097,0.00022899,2]
[313007634,1706602243397,-265.36254297,0.00022899,2]
[313007635,1706602243411,-863.99423,0.00022899,2]
[313007636,1706602243422,-1490.56288128,0.00022899,2]
[313007637,1706602243456,-461.31108481,0.00022899,2]
[313007638,1706602243466,-718.74,0.000229,2]
[313007639,1706602243475,-197.0786,0.000229,2]
[313007640,1706602243485,-152.54540813,0.000229,2]
[313007647,1706602243785,-627.61743104,0.000229,2]
[313007648,1706602243806,-513.64428085,0.00022914,6]
[313007649,1706602243820,-800.0,0.00022959,2]
[313007650,1706602243830,-156.39,0.00022969,2]
[313007651,1706602243840,-800.0,0.00022986,2]
[313007652,1706602243850,-800.0,0.00022986,2]
[313007653,1706602243860,-2327.90896649,0.00022989,2]
[313007654,1706602243870,-216.4136919,0.00022994,2]
[313007655,1706602243882,-793.5982173,0.00022994,2]
[313007656,1706602243891,-660.37209136,0.00022994,2]
[313007657,1706602243905,-1874.86140694,0.00022994,2]
[313007658,1706602243914,-5237.94838795,0.00022994,2]
[313007659,1706602243925,-12321.86041586,0.00022994,2]
[313007660,1706602243937,-23081.91634609,0.00022994,2]
[313007661,1706602243947,-13411.8414804,0.00022994,2]
[313007662,1706602243956,-505.24612965,0.00022998,2]
[313007663,1706602243966,-325.87549966,0.00022998,2]
[313007664,1706602243975,-1259.38403935,0.00022998,2]
[313007665,1706602243984,-395.70938262,0.00022998,2]
[313007666,1706602243994,-841.78208502,0.00022998,2]
[313007667,1706602244003,-425.12539659,0.00022998,2]
[313007672,1706602246317,-33.56128238,0.00022998,2]
[313007673,1706602246326,-1797.72302884,0.00022998,2]
[313007674,1706602246338,-2952.88969151,0.00022998,2]
[313007675,1706602246441,-999.79997,0.00022998,2]
[313007676,1706602246502,-2167.85,0.00022998,2]
[313007677,1706602246559,-1040.18075177,0.00022998,2]
[313007678,1706602246568,-1647.27407841,0.00022998,2]
[313007679,1706602246578,-265.75241527,0.00022998,2]
[313007680,1706602246587,-164.1687383,0.00022998,2]
[313007681,1706602246597,-7139.55620484,0.00022998,2]
[313007682,1706602598210,221.74,0.00020448,2]
[313007683,1706602656001,150.0,0.0002234,2]
[313007684,1706602702078,494.34,0.00022252,2]
[313007685,1706602732368,153.35478115,0.00022499,2]
[313007686,1706602764717,250.0,0.00021999,2]
[313007687,1706602775249,156.49,0.00022009,2]
[313007689,1706602787798,1280.60501164,0.00022499,5]
[313007690,1706602805835,1414.55188239,0.00022499,5]
[313007691,1706602820060,188.66,0.00021959,2]
[313007692,1706602851142,-292.81919456,0.00022555,2]
[313007693,1706602851175,-153.35478111,0.00022556,2]
[313007694,1706602851205,-286.58798442,0.00022569,2]
[313007695,1706602851239,-400.5,0.00022577,2]
[313007696,1706602851270,-150.0,0.00022597,2]
[313007697,1706602851290,-292.81919456,0.00022598,2]
[313007698,1706602851305,-153.35478111,0.00022598,2]
[313007699,1706602851316,-286.58798442,0.00022598,2]
[313007700,1706602851332,-400.5,0.00022598,2]
[313007701,1706602851343,-150.0,0.00022598,2]
[313007702,1706602851354,-12769.47607982,0.00022598,2]
[313007703,1706602938323,250.0,0.00022027,2]
[313007704,1706602955208,333.75,0.00021968,2]
[313007705,1706603107597,155.69382227,0.00031,120]
[313007706,1706603117473,210.65,0.00020094,2]
[313007707,1706603117666,210.65,0.00022358,2]
[313007708,1706603124281,158.49,0.00022177,2]
[313007709,1706603128361,604.52,0.00022041,2]
[313007711,1706603200063,250.0,0.00022113,2]
[313007712,1706603246094,-292.81919456,0.00022596,2]
[313007713,1706603246115,-62.90718759,0.00022597,2]
[313007714,1706603247097,-16024.41500747,0.00022597,2]
[313007715,1706603247119,-4134.80703507,0.00022598,2]
[313007716,1706603247141,-719.08,0.00022598,2]
[313007717,1706603247423,-727.65,0.00022599,2]
[313007718,1706603247446,-720.28,0.000226,2]
[313007719,1706603247466,-722.29,0.000226,2]
[313007720,1706603247488,-153.35478111,0.00022614,2]
[313007721,1706603247508,-153.35478111,0.00022671,2]
[313007722,1706603247528,-360.1584,0.00022699,2]
[313007723,1706603247549,-1833.4516,0.00022699,2]
[313007724,1706603247570,-9431.3829,0.00022699,2]
[313007725,1706603247590,-354.7466,0.00022699,2]
[313007726,1706603247609,-499.99,0.00022699,2]
[313007727,1706603247634,-153.35478111,0.00022728,2]
[313007728,1706603247659,-6322.0,0.0002277,2]
[313007729,1706603247680,-153.35478111,0.00022785,2]
[313007730,1706603247700,-1270.46762998,0.00022788,2]
[313007731,1706603247720,-272.31701927,0.00022797,2]
[313007732,1706603247746,-355.72638215,0.00022797,2]
[313007733,1706603247765,-534.84994698,0.00022798,2]
[313007734,1706603247785,-391.3311,0.00022799,2]
[313007735,1706603247805,-100000.0,0.00022799,2]
[313007736,1706603247826,-341.6147,0.00022799,2]
[313007737,1706603247849,-500.0,0.00022799,2]
[313007738,1706603247869,-4588.34444492,0.00022799,2]
[313007747,1706603431610,-292.81919456,0.00022698,2]
[313007748,1706603431620,-150.0,0.00022698,2]
[313007749,1706603431630,-500.0,0.00022699,2]
[313007750,1706603431639,-2298.79130112,0.00022699,2]
[313007751,1706603431651,-347.84521273,0.00022699,2]
[313007752,1706603431719,-2350.0,0.00022699,2]
[313007762,1706603437492,-1857.66139216,0.00022699,2]
[313007763,1706603437790,-39801.1048205,0.00022699,2]
[313007764,1706603437806,-772.60300918,0.00022699,2]
[313007765,1706603437818,-1085.41820824,0.00022699,2]
[313007766,1706603437830,-6255.2304,0.00022699,2]
[313007767,1706603437842,-35172.45607111,0.00022699,2]
[313007770,1706603437858,-638.24848553,0.00022699,2]
[313007772,1706603437869,-783.45476951,0.00022699,2]
[313007775,1706603437885,-2891.17880614,0.00022699,2]
[313007778,1706603437900,-5746.00752378,0.00022699,2]
[313007780,1706603437910,-890.67186495,0.00022798,2]
[313007782,1706603437919,-3879.39799211,0.00022799,2]
[313007784,1706603437934,-793.18800703,0.00022799,2]
[313007786,1706603437945,-392.92178369,0.00022799,2]
[313007829,1706603440015,-271.33310921,0.00022799,2]
[313007830,1706603440714,-738.70204546,0.00022799,2]
[313007831,1706603440773,-777.47000018,0.00022799,2]
[313007832,1706603440788,-4776.51,0.00022799,2]
[313007833,1706603441080,-1405.87319613,0.00022799,2]
[313007843,1706603442529,-2459.53667299,0.00022799,2]
[313007844,1706603442635,-1191.87715974,0.00022799,2]
[313007845,1706603442692,-115264.24416729,0.00022799,2]
[313007846,1706603442802,-1738.0000003,0.00022799,2]
[313007861,1706603445872,-1172.54883021,0.00022716,2]
[313007862,1706603445881,-213.74333975,0.00022798,2]
[313007863,1706603445890,-7212.41385373,0.00022799,2]
[313007864,1706603445922,-377.34566948,0.00022799,2]
[313007865,1706603465522,756.4864889,0.00021657,7]
[313007866,1706603565490,189.58,0.00020183,2]
[313007867,1706603565717,189.58,0.00022447,2]
[313007868,1706603596389,516.38,0.00022172,2]
[313007869,1706603606875,167.32,0.00022338,2]
[313007870,1706603652109,158.53356828,0.00022439,2]
[313007871,1706603657107,158.5335682,0.00022485,2]
[313007872,1706603687749,250.0,0.00021918,2]
[313007873,1706603888992,250.0,0.00021816,2]
[313007874,1706603958340,278.12,0.00021848,2]
[313007875,1706603982909,170.62,0.00019903,2]
[313007876,1706603983121,170.62,0.00022167,2]
[313007877,1706604027884,869.18335814,0.00022499,2]
[313007878,1706604032072,167.32,0.00021985,2]
[313007879,1706604034573,4498.70235005,0.00022499,2]
[313007880,1706604035687,1000.0,0.00022499,2]
[313007881,1706604044729,586.89,0.00021883,2]
[313007883,1706604054834,3037.25810563,0.00022499,2]
[313007884,1706604063250,2787.3959821,0.00022499,2]
[313007885,1706604067300,4283.36490793,0.00022499,2]
[313007886,1706604067723,292.81919456,0.00022499,2]
[313007887,1706604072506,338.48887294,0.00022499,2]
[313007888,1706604075862,4360.35224721,0.00022499,2]
[313007889,1706604096339,561.86622075,0.0002011,2]
[313007890,1706604109293,150.0,0.00022478,2]
[313007892,1706604112713,510.64,0.00021893,2]
[313007893,1706604114986,156.49,0.00021886,2]
[313007897,1706604185872,250.0,0.00021918,2]
[313007903,1706604297886,1043.8967265,0.000225,2]
[313007904,1706604312596,250.0,0.00021885,2]
[313007905,1706604398052,207.05,0.00019967,2]
[313007906,1706604398252,207.05,0.00022231,2]
[313007907,1706604412780,231.76,0.00021889,2]
[313007908,1706604429099,-292.81919456,0.00022506,2]
[313007909,1706604429128,-43.92821835,0.00022531,2]
[313007910,1706604454440,209.0,0.00021507,2]
[313007911,1706604516627,167.32,0.00022034,2]
[313007912,1706604524047,530.48,0.00021885,2]
[313007913,1706604568098,-292.81919456,0.00022541,2]
[313007914,1706604568119,-1253.0,0.00022542,2]
[313007915,1706604568140,-3864.87361765,0.00022594,2]
[313007916,1706604568159,-150.0,0.00022594,2]
[313007917,1706604568178,-1000.0,0.00022595,2]
[313007918,1706604568201,-529.86070712,0.00022595,2]
[313007919,1706604568222,-2782.5711225,0.00022595,2]
[313007920,1706604568242,-4279.24092321,0.00022595,2]
[313007921,1706604568262,-341.58860285,0.00022595,2]
[313007922,1706604568286,-354.28855881,0.00022595,2]
[313007923,1706604568305,-530.13408549,0.00022595,2]
[313007924,1706604568325,-498.43556061,0.00022596,2]
[313007925,1706604568344,-2688.26625657,0.00022596,2]
[313007926,1706604568366,-6298.26539097,0.00022597,2]
[313007928,1706604631582,-832.48880502,0.00022597,2]
[313007929,1706604631640,-546.06149217,0.00022597,2]
[313007930,1706604631652,-431.18512968,0.00022597,2]
[313007931,1706604631665,-341.78195328,0.00022597,2]
[313007932,1706604631697,-5284.59673525,0.00022597,2]
[313007933,1706604631708,-270.98804803,0.00022597,2]
[313007934,1706604631720,-10140.79308079,0.00022597,2]
[313007935,1706604631732,-679.56013266,0.00022597,2]
[313007936,1706604631744,-49845.61583215,0.00022597,2]
[313007937,1706604631753,-11365.6669,0.00022597,2]
[313007938,1706604631762,-1307.34852222,0.00022599,2]
[313007939,1706604631771,-325.67176166,0.00022696,2]
[313007940,1706604631780,-32773.08188262,0.00022697,2]
[313007941,1706604631815,-299.99,0.00022697,2]
[313007942,1706604631826,-8433.99912371,0.00022697,2]
[313007943,1706604631873,-1126.09699632,0.00022697,2]
[313007944,1706604631884,-879.76098058,0.00022697,2]
[313007945,1706604631896,-559.71247832,0.00022697,2]
[313007955,1706604637698,-253.6535,0.00022597,2]
[313007956,1706604637708,-477.3465,0.00022697,2]
[313007957,1706604637719,-646.64035545,0.00022697,2]
[313007958,1706604637772,-2461.16702176,0.00022697,2]
[313007959,1706604637783,-461.93394359,0.00022697,2]
[313007960,1706604637795,-6237.00356573,0.00022697,2]
[313007961,1706604637813,-43300.60778546,0.00022697,2]
[313007962,1706604637824,-7886.12749113,0.00022697,2]
[313007963,1706604637870,-3727.40956189,0.00022697,2]
[313007964,1706604637928,-34297.58437946,0.00022697,2]
[313007965,1706604637942,-61546.92375111,0.00022697,2]
[313007969,1706604640837,-39884.61418287,0.00022697,2]
[313007970,1706604640847,-150.99,0.00022697,2]
[313007971,1706604640858,-500.0,0.00022699,2]
[313007972,1706604640868,-96176.28434116,0.00022699,2]
[313007973,1706604640902,-847.76,0.00022699,2]
[313007974,1706604640913,-577.16574,0.00022699,2]
[313007975,1706604641014,-380.65555584,0.00022699,2]
[313007976,1706604641027,-1550.85846974,0.00022699,2]
[313007977,1706604641039,-467.27589326,0.00022699,2]
[313007978,1706604641050,-1105.63226228,0.00022699,2]
[313007979,1706604641067,-250.82726567,0.00022699,2]
[313007980,1706604641078,-739.68232101,0.00022699,2]
[313007984,1706604641370,-1890.53669289,0.00022699,2]
[313008002,1706604642706,-390.95960347,0.00022699,2]
[313008003,1706604642865,-5677.70779576,0.00022699,2]
[313008141,1706604648862,-11022.53795892,0.00022699,2]
[313008142,1706604648872,-220.05891523,0.00022797,2]
[313008143,1706604648882,-354.87715265,0.00022797,2]
[313008144,1706604648892,-191.98230226,0.00022797,2]
[313008145,1706604648902,-178.57868833,0.00022797,2]
[313008146,1706604648911,-279.66758209,0.00022797,2]
[313008147,1706604648921,-33826.26385058,0.00022797,2]
[313008148,1706604648930,-524.31366153,0.00022797,2]
[313008149,1706604648939,-304.73710127,0.00022797,2]
[313008150,1706604648951,-2180.72664687,0.00022797,2]
[313008151,1706604648961,-164.96152334,0.00022797,2]
[313008152,1706604648971,-204.84671022,0.00022797,2]
[313008153,1706604648981,-24394.97966401,0.00022797,2]
[313008154,1706604648990,-257.0325133,0.00022797,2]
[313008155,1706604649000,-849.7190247,0.00022797,2]
[313008156,1706604649009,-946.60101861,0.00022797,2]
[313008157,1706604649018,-155.50098616,0.00022797,2]
[313008158,1706604649028,-2146.10378163,0.00022797,2]
[313008159,1706604649037,-244.5905475,0.00022797,2]
[313008160,1706604649046,-200.0,0.00022815,2]
[313008161,1706604649056,-500.0,0.00022816,2]
[313008162,1706604649066,-200.0,0.00022816,2]
[313008163,1706604649076,-800.0,0.00022816,2]
[313008164,1706604649086,-2437.26459125,0.000229,2]
[313008165,1706604649097,-167.21031147,0.000229,2]
[313008166,1706604649107,-152.27580375,0.000229,2]
[313008167,1706604649117,-5000.0,0.000229,2]
[313008168,1706604649127,-1421.5647176,0.000229,2]
[313008169,1706604649137,-493.46502352,0.000229,2]
[313008170,1706604649147,-230.84671994,0.000229,2]
[313008171,1706604649157,-499.43004688,0.00022914,6]
[313008172,1706604649167,-215.63475234,0.00022973,2]
[313008173,1706604649181,-181.71064084,0.00022986,2]
[313008174,1706604649191,-510.64,0.00022987,2]
[313008175,1706604649201,-1602.1200826,0.00022994,2]
[313008176,1706604649212,-36615.1609999,0.00022994,2]
[313008177,1706604649222,-518.2520701,0.00022994,2]
[313008178,1706604649232,-43087.29438539,0.00022996,2]
[313008179,1706604649241,-472.97659907,0.00022996,2]
[313008180,1706604649253,-1456.97375323,0.00022996,2]
[313008181,1706604649264,-30039.3673392,0.00022997,2]
[313008182,1706604649274,-29174.13673913,0.00022998,2]
[313008183,1706604649284,-1439.13827967,0.00022998,2]
[313008184,1706604649295,-2602.7398681,0.00022998,2]
[313008185,1706604649304,-746.10986545,0.00022998,2]
[313008186,1706604649314,-225.5971963,0.00022998,2]
[313008187,1706604649323,-1013.26547405,0.00022999,2]
[313008188,1706604649333,-1140.83171223,0.00022999,2]
[313008189,1706604649344,-155.0,0.00022999,2]
[313008190,1706604649353,-250.63372975,0.00022999,2]
[313008191,1706604649363,-941.41772909,0.00022999,2]
[313008192,1706604649373,-705.09633479,0.00022999,2]
[313008193,1706604649382,-1813.68084069,0.00022999,2]
[313008194,1706604649392,-701.5358884,0.00022999,2]
[313008195,1706604649402,-252.04502671,0.00022999,2]
[313008196,1706604649412,-500.0,0.00022999,2]
[313008197,1706604649422,-500.0,0.00022999,2]
[313008198,1706604649432,-500.0,0.00022999,2]
[313008199,1706604649443,-416.44387339,0.00022999,2]
[313008200,1706604649460,-500.0,0.00022999,2]
[313008201,1706604649472,-500.0,0.00022999,2]
[313008202,1706604649482,-500.0,0.00022999,2]
[313008203,1706604649492,-605.18249381,0.00022999,2]
[313008204,1706604649502,-591.93872572,0.00022999,2]
[313008205,1706604649511,-500.0,0.00022999,2]
[313008206,1706604649522,-500.0,0.00022999,2]
[313008207,1706604649532,-493.79747142,0.00022999,2]
[313008208,1706604649541,-500.0,0.00022999,2]
[313008209,1706604649552,-500.0,0.00022999,2]
[313008210,1706604649562,-500.0,0.00022999,2]
[313008211,1706604649572,-500.0,0.00022999,2]
[313008212,1706604649583,-500.0,0.00022999,2]
[313008213,1706604649592,-500.0,0.00022999,2]
[313008214,1706604649602,-500.0,0.00022999,2]
[313008215,1706604649611,-567.44933047,0.00022999,2]
[313008216,1706604649621,-500.0,0.00022999,2]
[313008217,1706604649630,-500.0,0.00022999,2]
[313008218,1706604649642,-500.0,0.00022999,2]
[313008219,1706604649652,-500.0,0.00022999,2]
[313008220,1706604649662,-500.0,0.00022999,2]
[313008221,1706604649671,-500.0,0.00022999,2]
[313008222,1706604649681,-500.0,0.00022999,2]
[313008223,1706604649691,-500.0,0.00022999,2]
[313008224,1706604649701,-500.0,0.00022999,2]
[313008225,1706604649711,-500.0,0.00022999,2]
[313008226,1706604649722,-500.0,0.00022999,2]
[313008227,1706604649733,-500.0,0.00022999,2]
[313008228,1706604649743,-500.0,0.00022999,2]
[313008229,1706604649753,-500.0,0.00022999,2]
[313008230,1706604649764,-500.0,0.00022999,2]
[313008231,1706604649774,-500.0,0.00022999,2]
[313008232,1706604649783,-607.55774003,0.00022999,2]
[313008233,1706604649793,-500.0,0.00022999,2]
[313008234,1706604649803,-273.89924883,0.00022999,2]
[313008235,1706604649813,-500.0,0.00022999,2]
[313008236,1706604649823,-500.0,0.00022999,2]
[313008237,1706604649835,-500.0,0.00022999,2]
[313008238,1706604649846,-500.0,0.00022999,2]
[313008239,1706604649856,-497.34177347,0.00022999,2]
[313008240,1706604649866,-500.0,0.00022999,2]
[313008241,1706604649876,-500.0,0.00022999,2]
[313008242,1706604649885,-500.0,0.00022999,2]
[313008243,1706604649895,-500.0,0.00022999,2]
[313008244,1706604649905,-500.0,0.00022999,2]
[313008245,1706604649915,-500.0,0.00022999,2]
[313008246,1706604649924,-600.0,0.00022999,2]
[313008247,1706604649934,-500.0,0.00022999,2]
[313008248,1706604649946,-54916.59497265,0.00023,2]
[313008249,1706604649980,-255.19538551,0.00023,2]
[313008250,1706604649992,-4850.0000002,0.00023,2]
[313008251,1706604650005,-48864.07563351,0.00023,2]
[313008252,1706604650021,-421.605628,0.00023,2]
[313008253,1706604650050,-327.50599709,0.00023,2]
[313008254,1706604650065,-999.74999,0.00023,2]
[313008255,1706604650077,-258.24345965,0.00023,2]
[313008256,1706604899603,399.54403747,0.0002465,9]
[313008257,1706604904598,399.54403747,0.000264,11]
[313008258,1706604936802,-279.99555119,0.00022596,2]
[313008259,1706604936824,-150.0,0.00022596,2]
[313008260,1706604936845,-100000.0,0.00022597,2]
[313008261,1706604936866,-159.7025,0.00022597,2]
[313008262,1706604936887,-8481.67558246,0.00022768,2]
[313008263,1706604936909,-1143.92995696,0.000228,2]
[313008264,1706604936930,-500.0,0.00022816,2]
[313008265,1706604936950,-200.0,0.00022816,2]
[313008266,1706604936973,-800.0,0.00022816,2]
[313008267,1706604936993,-933.4637,0.00022896,2]
[313008268,1706604937014,-4931.8151,0.00022896,2]
[313008269,1706604937036,-245000.0,0.00022899,2]
[313008270,1706604937058,-165.52037904,0.000229,2]
[313008271,1706604937079,-2640.30488243,0.000229,2]
[313008272,1706604937100,-5000.0,0.000229,2]
[313008273,1706604937122,-238.41945864,0.000229,2]
[313008274,1706604937143,-328.97668234,0.000229,2]
[313008275,1706604937166,-399.54403748,0.000229,6]
[313008276,1706604937186,-289.76742738,0.000229,2]
[313008277,1706604937208,-805.2826647,0.000229,2]
[313008278,1706604937230,-230.84671994,0.000229,2]
[313008279,1706604937254,-152.17543882,0.000229,2]
[313008280,1706604937275,-155.36731009,0.000229,2]
[313008281,1706604937297,-328.97668233,0.00022907,2]
[313008282,1706604937319,-289.76742737,0.00022907,2]
[313008283,1706604937342,-328.97668233,0.00022914,2]
[313008284,1706604937363,-289.76742737,0.00022914,2]
[313008285,1706604937385,-2016.20080627,0.00022998,2]
[313008286,1706604937407,-29012.57892317,0.00022998,2]
[313008287,1706604937428,-1958.0737472,0.00022998,2]
[313008288,1706604937448,-981.3677156,0.00022998,2]
[313008289,1706604937471,-47547.1635844,0.00022998,2]
[313008290,1706604937492,-2624.33968539,0.00022999,2]
[313008291,1706604937513,-43087.29438539,0.00022999,2]
[313008292,1706604937536,-98548.70554171,0.00023,2]
[313008293,1706605034971,159.81761498,0.00026623,12]
[313008294,1706605214571,372.243,0.00024986,10]
[313008295,1706605264029,340.76488567,0.00026623,30]
[313008296,1706605479799,186.34,0.00021054,2]
[313008297,1706605505482,169.74,0.00022659,10]
[313008298,1706605505683,169.74,0.00023214,10]
[313008299,1706605505939,169.74,0.00023769,10]
[313008300,1706605506160,169.74,0.00024325,10]
[313008301,1706605506438,169.74,0.0002488,10]
[313008302,1706605596102,-279.99555119,0.00022794,2]
[313008303,1706605596120,-3.12919935,0.00022795,2]
[313008304,1706605653089,-514.85107633,0.00022795,2]
[313008305,1706605653108,-2073.49339683,0.00022797,2]
[313008306,1706605828818,-250.0,0.0002258,2]
[313008307,1706605828842,-23879.85,0.0002258,2]
[313008308,1706605828864,-193.13,0.00022772,2]
[313008309,1706605828887,-279.99217194,0.00022797,2]
[313008310,1706605828910,-306.97180835,0.00022798,2]
[313008311,1706605828934,-57090.05601971,0.00022799,2]
[313008317,1706605831903,-1020.88331608,0.00022799,2]
[313008318,1706605831915,-354.48328882,0.00022799,2]
[313008319,1706605831925,-3625.306,0.00022799,2]
[313008320,1706605831960,-37909.27137539,0.00022799,2]
[313008321,1706605831969,-180.49163233,0.00022799,2]
[313008322,1706605831978,-800.0,0.00022816,2]
[313008323,1706605831987,-24936.1393,0.000229,2]
[313008324,1706605831996,-2401.73811383,0.000229,2]
[313008325,1706605832005,-180.49163233,0.000229,2]
[313008326,1706605832014,-152.17543879,0.000229,2]
[313008327,1706605832023,-158.94630576,0.000229,2]
[313008328,1706605832033,-5000.0,0.000229,2]
[313008329,1706605832042,-947.70981172,0.000229,2]
[313008330,1706605832051,-3054.49351225,0.000229,2]
[313008335,1706605832251,-3054.49351223,0.00022918,2]
[313008336,1706605832260,-158.94630576,0.00022926,2]
[313008337,1706605832270,-947.70981172,0.00022926,2]
[313008338,1706605832279,-3054.49351223,0.00022935,2]
[313008339,1706605832288,-158.94630576,0.00022951,2]
[313008340,1706605832297,-947.70981172,0.00022951,2]
[313008341,1706605832308,-2101.6129036,0.00022998,3]
[313008342,1706605832317,-1556.95757,0.00022998,2]
[313008343,1706605832327,-1420.2068925,0.00022998,2]
[313008344,1706605832337,-150.01,0.00022999,2]
[313008345,1706605832347,-3305.32624244,0.00022999,2]
[313008346,1706605832356,-94849.25444894,0.00023,2]
[313008347,1706605832372,-1916.98708128,0.00023,2]
[313008350,1706605837891,-150.01,0.00022999,2]
[313008351,1706605837902,-3305.32624244,0.00022999,2]
[313008352,1706605837911,-23918.85333543,0.00023,2]
[313008353,1706605837947,-5413.59865016,0.00023,2]
[313008354,1706605837959,-395.84587954,0.00023,2]
[313008355,1706605837971,-296.43501175,0.00023,2]
[313008356,1706605837983,-306.979227,0.00023,2]
[313008357,1706605838116,-4245.84616659,0.00023,2]
[313008358,1706605838129,-370314.33225419,0.00023,2]
[313008359,1706605838139,-238797.63384732,0.00023,2]